fUST/lending_fUST_20240414
["ID","MTS","AMOUNT","RATE_DAILY","PERIOD"]
[322490543,1713037840288,-413.52960305,0.00032876,7]
[322490545,1713037840301,-500.0,0.00032876,7]
[322490547,1713037840314,-500.0,0.00032876,7]
[322490549,1713037840326,-500.0,0.00032876,7]
[322490551,1713037840340,-500.0,0.00032876,7]
[322490553,1713037840351,-500.0,0.00032876,7]
[322490555,1713037840362,-501.72219097,0.00032876,7]
[322490557,1713037840372,-272.3842325,0.00032876,7]
[322490559,1713037840386,-509.95726876,0.00032876,7]
[322490562,1713037840398,-500.0,0.00032876,7]
[322490564,1713037840409,-500.0,0.00032876,7]
[322490566,1713037840422,-500.0,0.00032876,7]
[322490568,1713037840434,-503.91995,0.00032876,7]
[322490570,1713037840446,-511.58418896,0.00032876,7]
[322490572,1713037840458,-500.0,0.00032876,7]
[322490574,1713037840473,-500.0,0.00032876,7]
[322490577,1713037840484,-221.08636391,0.00032876,7]
[322490579,1713037840500,-278.91363609,0.00032876,7]
[322490581,1713037840510,-500.0,0.00032876,7]
[322490584,1713037840523,-3168.52,0.00032876,7]
[322490586,1713037840534,-576.14087697,0.00032876,7]
[322490588,1713037840546,-500.0,0.00032876,7]
[322490590,1713037840558,-500.0,0.00032876,7]
[322490592,1713037840568,-500.0,0.00032876,7]
[322490595,1713037840580,-2507.46,0.00032876,7]
[322490597,1713037840592,-500.0,0.00032876,7]
[322490599,1713037840603,-504.6097672,0.00032876,7]
[322490601,1713037840614,-500.0,0.00032876,7]
[322490603,1713037840625,-500.0,0.00032876,7]
[322490605,1713037840635,-500.0,0.00032876,7]
[322490607,1713037840644,-504.09628153,0.00032876,7]
[322490610,1713037840657,-508.76774149,0.00032876,7]
[322490612,1713037840668,-500.0,0.00032876,7]
[322490614,1713037840679,-500.0,0.00032876,7]
[322490616,1713037840691,-500.0,0.00032876,7]
[322490619,1713037840704,-504.15054797,0.00032876,7]
[322490621,1713037840717,-588.12,0.00032876,7]
[322490623,1713037840728,-502.12859615,0.00032876,7]
[322490625,1713037840740,-500.0,0.00032876,7]
[322490627,1713037840752,-419.90088758,0.00032876,7]
[322490630,1713037840764,-500.0,0.00032876,7]
[322490633,1713037840775,-500.0,0.00032876,7]
[322490636,1713037840787,-500.0,0.00032876,7]
[322490638,1713037840800,-500.0,0.00032876,7]
[322490640,1713037840811,-500.0,0.00032876,7]
[322490642,1713037840822,-500.0,0.00032876,7]
[322490644,1713037840836,-500.0,0.00032876,7]
[322490646,1713037840849,-966.06,0.00032876,7]
[322490649,1713037840862,-500.0,0.00032876,7]
[322490651,1713037840876,-500.0,0.00032876,7]
[322490652,1713037840888,-500.0,0.00032876,7]
[322490653,1713037840899,-173.91980545,0.00032876,7]
[322490654,1713037840909,-500.0,0.00032876,7]
[322490655,1713037840919,-500.0,0.00032876,7]
[322490656,1713037840930,-1191.65,0.00032876,7]
[322490657,1713037840940,-276.43129309,0.00032876,7]
[322490658,1713037840955,-223.56870691,0.00032876,7]
[322490659,1713037840990,-500.0,0.00032876,7]
[322490660,1713037841002,-500.0,0.00032876,7]
[322490661,1713037841012,-500.0,0.00032876,7]
[322490662,1713037841023,-500.0,0.00032876,7]
[322490663,1713037841036,-500.0,0.00032876,7]
[322490664,1713037841048,-599.64,0.00032876,7]
[322490665,1713037841059,-500.0,0.00032876,7]
[322490666,1713037841069,-500.0,0.00032876,7]
[322490667,1713037841080,-619.20929098,0.00032876,7]
[322490668,1713037841090,-411.91497699,0.00032876,7]
[322490669,1713037841100,-501.33177882,0.00032876,7]
[322490670,1713037841113,-500.0,0.00032876,7]
[322490671,1713037841124,-500.0,0.00032876,7]
[322490672,1713037841135,-502.15700964,0.00032876,7]
[322490673,1713037841146,-500.0,0.00032876,7]
[322490674,1713037841158,-506.14014559,0.00032876,7]
[322490675,1713037841169,-317.31078061,0.00032876,7]
[322490676,1713037841180,-500.0,0.00032876,7]
[322490677,1713037841191,-500.0,0.00032876,7]
[322490678,1713037841202,-500.0,0.00032876,7]
[322490679,1713037841216,-2288.28,0.00032876,7]
[322490680,1713037841227,-500.0,0.00032876,7]
[322490681,1713037841239,-502.32186539,0.00032876,7]
[322490683,1713037841251,-500.0,0.00032876,7]
[322490685,1713037841263,-500.0,0.00032876,7]
[322490687,1713037841274,-500.0,0.00032876,7]
[322490689,1713037841285,-507.29782112,0.00032876,7]
[322490691,1713037841296,-500.0,0.00032876,7]
[322490693,1713037841307,-500.0,0.00032876,7]
[322490695,1713037841317,-500.0,0.00032876,7]
[322490697,1713037841328,-500.0,0.00032876,7]
[322490699,1713037841339,-500.0,0.00032876,7]
[322490702,1713037841350,-500.0,0.00032876,7]
[322490704,1713037841360,-5958.9,0.00032876,7]
[322490706,1713037841371,-503.35510766,0.00032876,7]
[322490708,1713037841382,-500.0,0.00032876,7]
[322490710,1713037841392,-342.39120222,0.00032876,7]
[322490712,1713037841403,-754.16984672,0.00032876,7]
[322490715,1713037841419,-1503.98015328,0.00032876,7]
[322490717,1713037841429,-500.0,0.00032876,7]
[322490719,1713037841439,-506.7252745,0.00032876,7]
[322490721,1713037841450,-500.0,0.00032876,7]
[322490723,1713037841460,-386.42816611,0.00032876,7]
[322490725,1713037841474,-747.31,0.00032876,7]
[322490727,1713037841484,-500.0,0.00032876,7]
[322490729,1713037841495,-500.0,0.00032876,7]
[322490731,1713037841504,-1500.20903287,0.00032876,7]
[322490733,1713037841518,-8837.21096713,0.00032876,7]
[322490735,1713037841528,-500.0,0.00032876,7]
[322490737,1713037841538,-500.0,0.00032876,7]
[322490739,1713037841549,-501.66574896,0.00032876,7]
[322490741,1713037841560,-500.0,0.00032876,7]
[322490743,1713037841570,-2879.27,0.00032876,7]
[322490745,1713037841581,-500.0,0.00032876,7]
[322490747,1713037841591,-500.0,0.00032876,7]
[322490749,1713037841602,-500.0,0.00032876,7]
[322490752,1713037841612,-500.0,0.00032876,7]
[322490754,1713037841623,-1435.34,0.00032876,7]
[322490756,1713037841634,-500.0,0.00032876,7]
[322490758,1713037841645,-500.0,0.00032876,7]
[322490760,1713037841655,-813.72,0.00032876,7]
[322490762,1713037841665,-500.0,0.00032876,7]
[322490764,1713037841676,-837.9,0.00032876,7]
[322490765,1713037841686,-500.0,0.00032876,7]
[322490766,1713037841697,-500.0,0.00032876,7]
[322490767,1713037841708,-647.82821017,0.00032876,7]
[322490768,1713037841723,-499.39043389,0.00032876,7]
[322490769,1713037841732,-500.0,0.00032876,7]
[322490770,1713037841742,-759.95,0.00032876,7]
[322490771,1713037841754,-503.12603067,0.00032876,7]
[322490772,1713037841912,-734.48,0.00032876,7]
[322490773,1713037841929,-500.0,0.00032876,7]
[322490774,1713037841938,-500.0,0.00032876,7]
[322490775,1713037841948,-2044.61,0.00032876,7]
[322490776,1713037841958,-2484.35,0.00032876,7]
[322490777,1713037841973,-500.0,0.00032876,7]
[322490778,1713037841982,-1166.36,0.00032876,7]
[322490780,1713037841992,-500.0,0.00032876,7]
[322490782,1713037842001,-1004.01338133,0.00032876,7]
[322490784,1713037842010,-500.0,0.00032876,7]
[322490786,1713037842021,-500.0,0.00032876,7]
[322490788,1713037842031,-500.0,0.00032876,7]
[322490790,1713037842042,-500.0,0.00032876,7]
[322490792,1713037842052,-500.0,0.00032876,7]
[322490794,1713037842063,-500.0,0.00032876,7]
[322490796,1713037842074,-500.0,0.00032876,7]
[322490798,1713037842085,-1981.87,0.00032876,7]
[322490800,1713037842095,-500.0,0.00032876,7]
[322490802,1713037842105,-964.68,0.00032876,7]
[322490804,1713037842116,-500.0,0.00032876,7]
[322490806,1713037842129,-1322.44,0.00032876,7]
[322490808,1713037842139,-500.0,0.00032876,7]
[322490810,1713037842148,-227.54848399,0.00032876,7]
[322490812,1713037842157,-1055.85,0.00032876,7]
[322490813,1713037842167,-500.0,0.00032876,7]
[322490816,1713037842177,-809.51,0.00032876,7]
[322490818,1713037842186,-500.0,0.00032876,7]
[322490819,1713037842196,-500.0,0.00032876,7]
[322490821,1713037842205,-971.65,0.00032876,7]
[322490824,1713037842219,-300.0,0.00032876,7]
[322490825,1713037842228,-557.83602978,0.00032876,7]
[322490828,1713037842240,-500.0,0.00032876,7]
[322490830,1713037842250,-500.0,0.00032876,7]
[322490832,1713037842259,-501.42290715,0.00032876,7]
[322490833,1713037842269,-500.0,0.00032876,7]
[322490835,1713037842278,-500.0,0.00032876,7]
[322490837,1713037842287,-577.5287327,0.00032876,7]
[322490840,1713037842297,-500.0,0.00032876,7]
[322490841,1713037842307,-591.88,0.00032876,7]
[322490843,1713037842316,-501.09936948,0.00032876,7]
[322490846,1713037842326,-500.0,0.00032876,7]
[322490848,1713037842336,-500.0,0.00032876,7]
[322490850,1713037842347,-500.0,0.00032876,7]
[322490851,1713037842357,-500.0,0.00032876,7]
[322490854,1713037842367,-994.95,0.00032876,7]
[322490855,1713037842376,-500.0,0.00032876,7]
[322490857,1713037842390,-345.36528371,0.00032876,7]
[322490859,1713037842400,-500.0,0.00032876,7]
[322490861,1713037842411,-500.0,0.00032876,7]
[322490863,1713037842421,-500.0,0.00032876,7]
[322490865,1713037842432,-30162.48,0.00032876,7]
[322490867,1713037842442,-500.0,0.00032876,7]
[322490869,1713037842451,-500.0,0.00032876,7]
[322490871,1713037842461,-488.00298307,0.00032876,7]
[322490873,1713037842478,-500.0,0.00032876,7]
[322490875,1713037842488,-500.0,0.00032876,7]
[322490877,1713037842497,-500.0,0.00032876,7]
[322490879,1713037842507,-2223.22,0.00032876,7]
[322490881,1713037842516,-500.0,0.00032876,7]
[322490883,1713037842525,-500.0,0.00032876,7]
[322490885,1713037842534,-500.0,0.00032876,7]
[322490887,1713037842544,-500.0,0.00032876,7]
[322490889,1713037842555,-1205.96,0.00032876,7]
[322490891,1713037842564,-3556.62,0.00032876,7]
[322490893,1713037842573,-500.0,0.00032876,7]
[322490895,1713037842582,-500.0,0.00032876,7]
[322490897,1713037842592,-939.28,0.00032876,7]
[322490899,1713037842601,-500.0,0.00032876,7]
[322490901,1713037842609,-1469.09,0.00032876,7]
[322490903,1713037842619,-500.0,0.00032876,7]
[322490905,1713037842628,-500.0,0.00032876,7]
[322490907,1713037842638,-154.87609912,0.00032876,7]
[322490909,1713037842647,-500.0,0.00032876,7]
[322490911,1713037842656,-248.29776842,0.00032876,7]
[322490913,1713037842665,-1182.19,0.00032876,7]
[322490915,1713037842674,-415.5638855,0.00032877,2]
[322490917,1713037842683,-1200.0,0.00033,4]
[322490919,1713037842692,-2000.0,0.0003305,2]
[322490921,1713037842701,-7470.88179947,0.000331,2]
[322490923,1713037842711,-153.0,0.000331,2]
[322490925,1713037842724,-500.0,0.00033149,7]
[322490927,1713037842733,-500.0,0.00033149,7]
[322490929,1713037842742,-500.0,0.00033149,7]
[322490931,1713037842756,-500.0,0.00033149,7]
[322490933,1713037842765,-500.0,0.00033149,7]
[322490935,1713037842775,-500.0,0.00033149,7]
[322490937,1713037842785,-500.0,0.00033149,7]
[322490939,1713037842798,-412.440759,0.00033149,7]
[322490942,1713037842807,-429.68465209,0.0003315,7]
[322490943,1713037842816,-500.0,0.0003315,7]
[322490946,1713037842826,-500.0,0.0003315,7]
[322490947,1713037842835,-756.13,0.0003315,7]
[322490949,1713037842844,-500.0,0.0003315,7]
[322490951,1713037842854,-536.82226713,0.0003315,7]
[322490953,1713037842864,-500.0,0.0003315,7]
[322490955,1713037842874,-500.0,0.0003315,7]
[322490957,1713037842883,-500.0,0.0003315,7]
[322490959,1713037842892,-563.44,0.0003315,7]
[322490961,1713037842902,-500.0,0.0003315,7]
[322490963,1713037842912,-500.0,0.0003315,7]
[322490965,1713037842921,-500.0,0.0003315,7]
[322490967,1713037842930,-500.0,0.0003315,7]
[322490969,1713037842939,-505.82341334,0.0003315,7]
[322490971,1713037842948,-500.0,0.0003315,7]
[322490973,1713037842957,-500.0,0.0003315,7]
[322490975,1713037842972,-831.58,0.0003315,7]
[322490977,1713037842982,-500.0,0.0003315,7]
[322490980,1713037842992,-1873.82,0.0003315,7]
[322490982,1713037843001,-826.66,0.0003315,7]
[322490983,1713037843011,-1320.91,0.0003315,2]
[322490985,1713037843020,-500.0,0.0003315,7]
[322490987,1713037843030,-500.0,0.0003315,7]
[322490990,1713037843039,-289.05681872,0.0003315,7]
[322490991,1713037843049,-546.28470889,0.0003315,7]
[322490993,1713037843060,-600.75248345,0.0003315,7]
[322490996,1713037843069,-500.0,0.0003315,7]
[322490998,1713037843079,-500.0,0.0003315,7]
[322491000,1713037843089,-500.0,0.0003315,7]
[322491003,1713037843100,-500.0,0.0003315,7]
[322491005,1713037843110,-500.0,0.0003315,7]
[322491007,1713037843120,-500.0,0.0003315,7]
[322491009,1713037843130,-509.601207,0.0003315,7]
[322491011,1713037843139,-500.0,0.0003315,7]
[322491014,1713037843149,-500.0,0.0003315,7]
[322491016,1713037843159,-507.89043381,0.0003315,7]
[322491018,1713037843168,-500.0,0.0003315,7]
[322491019,1713037843177,-500.0,0.0003315,7]
[322491022,1713037843186,-500.0,0.0003315,7]
[322491024,1713037843195,-500.0,0.0003315,7]
[322491026,1713037843205,-500.0,0.0003315,7]
[322491029,1713037843217,-3168.52,0.0003315,7]
[322491031,1713037843226,-500.0,0.0003315,7]
[322491033,1713037843235,-500.0,0.0003315,7]
[322491035,1713037843244,-2507.46,0.0003315,7]
[322491037,1713037843253,-500.0,0.0003315,7]
[322491039,1713037843263,-500.0,0.0003315,7]
[322491041,1713037843274,-500.0,0.0003315,7]
[322491044,1713037843284,-500.0,0.0003315,7]
[322491045,1713037843293,-500.0,0.0003315,7]
[322491047,1713037843302,-588.12,0.0003315,7]
[322491049,1713037843311,-500.0,0.0003315,7]
[322491051,1713037843321,-500.0,0.0003315,7]
[322491054,1713037843330,-500.0,0.0003315,7]
[322491055,1713037843339,-500.0,0.0003315,7]
[322491057,1713037843349,-505.65981487,0.0003315,7]
[322491059,1713037843358,-500.0,0.0003315,7]
[322491061,1713037843367,-554.51550462,0.0003315,7]
[322491064,1713037843378,-966.06,0.0003315,7]
[322491065,1713037843387,-500.0,0.0003315,7]
[322491067,1713037843396,-500.0,0.0003315,7]
[322491069,1713037843405,-500.0,0.0003315,7]
[322491071,1713037843415,-375.0726596,0.0003315,7]
[322491073,1713037843424,-1191.65,0.0003315,7]
[322491075,1713037843434,-500.0,0.0003315,7]
[322491077,1713037843444,-500.0,0.0003315,7]
[322491079,1713037843453,-500.0,0.0003315,7]
[322491081,1713037843462,-539.34341206,0.0003315,7]
[322491084,1713037843475,-599.64,0.0003315,7]
[322491086,1713037843484,-500.0,0.0003315,7]
[322491088,1713037843493,-504.24950144,0.0003315,7]
[322491089,1713037843503,-509.80590463,0.0003315,7]
[322491091,1713037843513,-500.0,0.0003315,7]
[322491093,1713037843522,-365.15564107,0.0003315,7]
[322491095,1713037843531,-2288.28,0.0003315,7]
[322491098,1713037843541,-500.0,0.0003315,7]
[322491100,1713037843550,-503.93477192,0.0003315,7]
[322491102,1713037843560,-511.08378586,0.0003315,7]
[322491104,1713037843569,-502.16071894,0.0003315,7]
[322491105,1713037843579,-500.0,0.0003315,7]
[322491107,1713037843588,-500.0,0.0003315,7]
[322491109,1713037843597,-500.0,0.0003315,7]
[322491111,1713037843607,-500.0,0.0003315,7]
[322491113,1713037843616,-500.0,0.0003315,7]
[322491115,1713037843625,-5958.9,0.0003315,7]
[322491117,1713037843634,-500.0,0.0003315,7]
[322491119,1713037843643,-2258.15,0.0003315,7]
[322491121,1713037843652,-500.0,0.0003315,7]
[322491123,1713037843661,-747.31,0.0003315,7]
[322491125,1713037843670,-516.92728088,0.0003315,7]
[322491127,1713037843679,-309.73189997,0.0003315,7]
[322491129,1713037843688,-10337.42,0.0003315,7]
[322491131,1713037843698,-507.16326243,0.0003315,7]
[322491133,1713037843708,-500.0,0.0003315,7]
[322491135,1713037843720,-2879.27,0.0003315,7]
[322491137,1713037843731,-503.88214956,0.0003315,7]
[322491139,1713037843741,-591.08396249,0.0003315,7]
[322491141,1713037843753,-500.0,0.0003315,7]
[322491143,1713037843762,-1435.34,0.0003315,7]
[322491145,1713037843772,-500.0,0.0003315,7]
[322491147,1713037843781,-813.72,0.0003315,7]
[322491150,1713037843796,-500.0,0.0003315,7]
[322491151,1713037843805,-837.9,0.0003315,7]
[322491153,1713037843814,-500.0,0.0003315,7]
[322491155,1713037843824,-500.0,0.0003315,7]
[322491157,1713037843833,-759.95,0.0003315,7]
[322491159,1713037843842,-734.48,0.0003315,7]
[322491161,1713037843851,-500.0,0.0003315,7]
[322491163,1713037843860,-502.59759276,0.0003315,7]
[322491165,1713037843871,-2044.61,0.0003315,7]
[322491167,1713037843881,-2484.35,0.0003315,7]
[322491169,1713037843890,-1166.36,0.0003315,7]
[322491171,1713037843900,-500.0,0.0003315,7]
[322491173,1713037843913,-500.0,0.0003315,7]
[322491176,1713037843923,-500.0,0.0003315,7]
[322491178,1713037843975,-500.0,0.0003315,7]
[322491179,1713037843985,-500.0,0.0003315,7]
[322491182,1713037843995,-1981.87,0.0003315,7]
[322491183,1713037844005,-964.68,0.0003315,7]
[322491185,1713037844015,-500.0,0.0003315,7]
[322491188,1713037844024,-1322.44,0.0003315,7]
[322491189,1713037844034,-1055.85,0.0003315,7]
[322491191,1713037844043,-500.0,0.0003315,7]
[322491193,1713037844052,-809.51,0.0003315,7]
[322491195,1713037844062,-500.0,0.0003315,7]
[322491197,1713037844071,-500.0,0.0003315,7]
[322491199,1713037844081,-971.65,0.0003315,7]
[322491201,1713037844091,-300.0,0.0003315,7]
[322491204,1713037844100,-500.0,0.0003315,7]
[322491206,1713037844110,-500.0,0.0003315,7]
[322491208,1713037844119,-500.0,0.0003315,7]
[322491209,1713037844129,-410.75525603,0.0003315,7]
[322491212,1713037844138,-500.0,0.0003315,7]
[322491213,1713037844147,-591.88,0.0003315,7]
[322491215,1713037844157,-500.0,0.0003315,7]
[322491218,1713037844166,-994.95,0.0003315,7]
[322491220,1713037844175,-535.21305459,0.0003315,7]
[322491222,1713037844186,-500.0,0.0003315,7]
[322491224,1713037844195,-500.0,0.0003315,7]
[322491226,1713037844204,-502.84228291,0.0003315,7]
[322491228,1713037844218,-30162.48,0.0003315,7]
[322491230,1713037844227,-510.0202289,0.0003315,7]
[322491232,1713037844237,-500.0,0.0003315,7]
[322491234,1713037844247,-500.0,0.0003315,7]
[322491236,1713037844256,-500.0,0.0003315,7]
[322491238,1713037844265,-500.0,0.0003315,7]
[322491240,1713037844274,-2223.22,0.0003315,7]
[322491242,1713037844284,-293.0,0.0003315,7]
[322491244,1713037844294,-500.0,0.0003315,7]
[322491246,1713037844304,-502.3961917,0.0003315,7]
[322491248,1713037844314,-500.0,0.0003315,7]
[322491250,1713037844329,-1205.96,0.0003315,7]
[322491252,1713037844338,-3556.62,0.0003315,7]
[322491254,1713037844349,-500.0,0.0003315,7]
[322491256,1713037844359,-500.0,0.0003315,7]
[322491258,1713037844369,-939.28,0.0003315,7]
[322491260,1713037844381,-1469.09,0.0003315,7]
[322491262,1713037844391,-476.72737346,0.0003315,7]
[322491264,1713037844401,-500.0,0.0003315,7]
[322491266,1713037844411,-1182.19,0.0003315,7]
[322491267,1713037844423,-382.865022,0.00033165,2]
[322491268,1713037844433,-211.8328962,0.0003337,2]
[322491269,1713037844444,-153.0,0.00033397,2]
[322491270,1713037844455,-153.0,0.00033397,2]
[322491271,1713037844471,-153.0,0.00033397,2]
[322491272,1713037844483,-153.0,0.00033397,2]
[322491273,1713037844494,-153.0,0.00033397,2]
[322491275,1713037844505,-153.0,0.00033397,2]
[322491277,1713037844516,-153.0,0.00033397,2]
[322491279,1713037844527,-153.0,0.00033397,2]
[322491281,1713037844537,-153.0,0.00033397,2]
[322491283,1713037844549,-153.0,0.00033397,2]
[322491285,1713037844558,-153.0,0.00033397,2]
[322491287,1713037844568,-153.0,0.00033397,2]
[322491289,1713037844580,-328.99826694,0.00033422,7]
[322491291,1713037844590,-500.0,0.00033424,7]
[322491293,1713037844600,-756.13,0.00033424,7]
[322491295,1713037844609,-500.0,0.00033424,7]
[322491297,1713037844618,-500.0,0.00033424,7]
[322491299,1713037844627,-500.0,0.00033424,7]
[322491301,1713037844637,-563.44,0.00033424,7]
[322491304,1713037844646,-500.0,0.00033424,7]
[322491306,1713037844656,-500.0,0.00033424,7]
[322491308,1713037844665,-831.58,0.00033424,7]
[322491310,1713037844674,-1873.82,0.00033424,7]
[322491311,1713037844683,-826.66,0.00033424,7]
[322491313,1713037844693,-1320.91,0.00033424,2]
[322491316,1713037844702,-500.0,0.00033424,7]
[322491318,1713037844712,-500.0,0.00033424,7]
[322491320,1713037844727,-500.0,0.00033424,7]
[322491321,1713037844737,-500.0,0.00033424,7]
[322491324,1713037844747,-500.0,0.00033424,7]
[322491325,1713037844758,-500.0,0.00033424,7]
[322491328,1713037844767,-500.0,0.00033424,7]
[322491330,1713037844776,-500.0,0.00033424,7]
[322491331,1713037844786,-585.30269564,0.00033424,7]
[322491333,1713037844801,-500.0,0.00033424,7]
[322491335,1713037844813,-500.0,0.00033424,7]
[322491338,1713037844823,-500.0,0.00033424,7]
[322491340,1713037844832,-3168.52,0.00033424,7]
[322491342,1713037844843,-500.0,0.00033424,7]
[322491344,1713037844853,-247.71452935,0.00033424,7]
[322491346,1713037844862,-2507.46,0.00033424,7]
[322491348,1713037844871,-500.0,0.00033424,7]
[322491350,1713037844880,-500.0,0.00033424,7]
[322491352,1713037844890,-500.0,0.00033424,7]
[322491354,1713037844899,-500.0,0.00033424,7]
[322491356,1713037844908,-500.0,0.00033424,7]
[322491358,1713037844917,-588.12,0.00033424,7]
[322491360,1713037844926,-500.0,0.00033424,7]
[322491362,1713037844935,-500.0,0.00033424,7]
[322491364,1713037844945,-500.0,0.00033424,7]
[322491366,1713037844954,-510.60843423,0.00033424,7]
[322491368,1713037844964,-966.06,0.00033424,7]
[322491370,1713037844978,-500.0,0.00033424,7]
[322491372,1713037844987,-500.0,0.00033424,7]
[322491374,1713037844996,-500.0,0.00033424,7]
[322491376,1713037845006,-1191.65,0.00033424,7]
[322491378,1713037845015,-500.0,0.00033424,7]
[322491379,1713037845024,-500.0,0.00033424,7]
[322491382,1713037845034,-599.64,0.00033424,7]
[322491383,1713037845043,-500.0,0.00033424,7]
[322491385,1713037845053,-565.72365812,0.00033424,7]
[322491388,1713037845063,-2288.28,0.00033424,7]
[322491390,1713037845075,-500.0,0.00033424,7]
[322491391,1713037845085,-500.0,0.00033424,7]
[322491394,1713037845095,-489.54793724,0.00033424,7]
[322491396,1713037845104,-500.0,0.00033424,7]
[322491398,1713037845114,-5958.9,0.00033424,7]
[322491400,1713037845123,-500.0,0.00033424,7]
[322491402,1713037845133,-2258.15,0.00033424,7]
[322491404,1713037845142,-519.03290826,0.00033424,7]
[322491405,1713037845151,-747.31,0.00033424,7]
[322491408,1713037845161,-10337.42,0.00033424,7]
[322491410,1713037845170,-2879.27,0.00033424,7]
[322491412,1713037845180,-500.0,0.00033424,7]
[322491425,1713037845301,-1435.34,0.00033424,7]
[322491428,1713037845314,-500.0,0.00033424,7]
[322491430,1713037845323,-813.72,0.00033424,7]
[322491432,1713037845333,-500.0,0.00033424,7]
[322491434,1713037845343,-837.9,0.00033424,7]
[322491436,1713037845353,-500.0,0.00033424,7]
[322491438,1713037845363,-500.0,0.00033424,7]
[322491440,1713037845373,-759.95,0.00033424,7]
[322491442,1713037845382,-734.48,0.00033424,7]
[322491444,1713037845391,-2044.61,0.00033424,7]
[322491446,1713037845403,-2484.35,0.00033424,7]
[322491448,1713037845412,-1166.36,0.00033424,7]
[322491450,1713037845422,-500.0,0.00033424,7]
[322491452,1713037845431,-500.0,0.00033424,7]
[322491454,1713037845441,-500.0,0.00033424,7]
[322491456,1713037845451,-1981.87,0.00033424,7]
[322491458,1713037845461,-964.68,0.00033424,7]
[322491460,1713037845476,-500.0,0.00033424,7]
[322491463,1713037845486,-1322.44,0.00033424,7]
[322491465,1713037845495,-1055.85,0.00033424,7]
[322491467,1713037845504,-500.0,0.00033424,7]
[322491469,1713037845514,-809.51,0.00033424,7]
[322491471,1713037845523,-500.0,0.00033424,7]
[322491473,1713037845532,-500.0,0.00033424,7]
[322491475,1713037845541,-971.65,0.00033424,7]
[322491477,1713037845551,-300.0,0.00033424,7]
[322491479,1713037845561,-500.0,0.00033424,7]
[322491481,1713037845571,-500.0,0.00033424,7]
[322491483,1713037845581,-500.0,0.00033424,7]
[322491485,1713037845592,-500.0,0.00033424,7]
[322491487,1713037845601,-591.88,0.00033424,7]
[322491489,1713037845611,-500.0,0.00033424,7]
[322491491,1713037845621,-994.95,0.00033424,7]
[322491493,1713037845631,-500.0,0.00033424,7]
[322491495,1713037845643,-500.0,0.00033424,7]
[322491497,1713037845653,-30162.48,0.00033424,7]
[322491499,1713037845663,-500.0,0.00033424,7]
[322491501,1713037845672,-500.0,0.00033424,7]
[322491503,1713037845681,-405.4939432,0.00033424,7]
[322491505,1713037845691,-2223.22,0.00033424,7]
[322491507,1713037845700,-179.25745863,0.00033424,7]
[322491509,1713037845709,-500.0,0.00033424,7]
[322491511,1713037845724,-1205.96,0.00033424,7]
[322491513,1713037845736,-3556.62,0.00033424,7]
[322491515,1713037845746,-500.0,0.00033424,7]
[322491517,1713037845758,-939.28,0.00033424,7]
[322491519,1713037845767,-1469.09,0.00033424,7]
[322491522,1713037845777,-500.0,0.00033424,7]